[Event "Titled Tuesday Blitz July 11 Late 2023"]
[White "Bartel, Mateusz"]
[Black "Kalogeris, Ioannis"]
[WhiteFideId "1112635"]
[BlackFideId "4239563"]
[WhiteElo "2795"]
[BlackElo "2524"]
[Result "0-1"]
[Round "2"]
[TimeControl "180+2"]
[Date "2023.07.11"]
[WhiteClock "0:00:00"]
[BlackClock "0:00:19"]
[Board "45"]

1. e3 {[%clk 0:02:59]}  d5 {[%clk 0:02:59]} 2. Nf3 {[%clk 0:02:56]}  Nf6 {[%clk 0:02:59]} 3. h3 {[%clk 0:02:56]}  g6 {[%clk 0:02:58]} 4. b3 {[%clk 0:02:52]}  Bg7 {[%clk 0:02:58]} 5. Bb2 {[%clk 0:02:53]}  O-O {[%clk 0:02:57]} 6. d4 {[%clk 0:02:44]}  c5 {[%clk 0:02:56]} 7. dxc5 {[%clk 0:02:42]}  Na6 {[%clk 0:02:55]} 8. Bxa6 {[%clk 0:02:17]}  Qa5+ {[%clk 0:02:52]} 9. Nbd2 {[%clk 0:02:17]}  Qxa6 {[%clk 0:02:47]} 10. Qe2 {[%clk 0:02:04]}  b6 {[%clk 0:02:43]} 11. Qxa6 {[%clk 0:01:57]}  Bxa6 {[%clk 0:02:44]} 12. cxb6 {[%clk 0:01:58]}  axb6 {[%clk 0:02:44]} 13. O-O-O {[%clk 0:01:58]}  Be2 {[%clk 0:02:36]} 14. Rde1 {[%clk 0:01:58]}  Bxf3 {[%clk 0:02:36]} 15. gxf3 {[%clk 0:01:38]}  Rxa2 {[%clk 0:02:35]} 16. Kb1 {[%clk 0:01:28]}  Rfa8 {[%clk 0:02:31]} 17. c3 {[%clk 0:01:27]}  Nd7 {[%clk 0:02:22]} 18. f4 {[%clk 0:01:11]}  b5 {[%clk 0:02:15]} 19. e4 {[%clk 0:00:54]}  b4 {[%clk 0:01:57]} 20. e5 {[%clk 0:00:53]}  Nc5 {[%clk 0:01:47]} 21. Re3 {[%clk 0:00:45]}  Bh6 {[%clk 0:01:46]} 22. Rf3 {[%clk 0:00:40]}  Bxf4 {[%clk 0:01:41]} 23. cxb4 {[%clk 0:00:29]}  Ne6 {[%clk 0:01:12]} 24. Rd1 {[%clk 0:00:28]}  Rxb2+ {[%clk 0:01:08]} 25. Kxb2 {[%clk 0:00:25]}  Bxe5+ {[%clk 0:01:09]} 26. Kc2 {[%clk 0:00:18]}  Nd4+ {[%clk 0:01:09]} 27. Kd3 {[%clk 0:00:18]}  Nxf3 {[%clk 0:01:07]} 28. Nxf3 {[%clk 0:00:19]}  Bd6 {[%clk 0:01:07]} 29. Nd4 {[%clk 0:00:04]}  Bxb4 {[%clk 0:01:04]} 30. Nc6 {[%clk 0:00:05]}  Bd6 {[%clk 0:01:04]} 31. b4 {[%clk 0:00:05]}  Ra3+ {[%clk 0:00:59]} 32. Kc2 {[%clk 0:00:05]}  e6 {[%clk 0:00:51]} 33. b5 {[%clk 0:00:04]}  Bc5 {[%clk 0:00:51]} 34. Rb1 {[%clk 0:00:01]}  Bb6 {[%clk 0:00:51]} 35. Ne5 {[%clk 0:00:01]}  Ra7 {[%clk 0:00:44]} 36. Nc6 {[%clk 0:00:01]}  Rb7 {[%clk 0:00:42]} 37. Kd3 {[%clk 0:00:02]}  f6 {[%clk 0:00:41]} 38. f3 {[%clk 0:00:03]}  Kf7 {[%clk 0:00:41]} 39. f4 {[%clk 0:00:04]}  Ke8 {[%clk 0:00:41]} 40. h4 {[%clk 0:00:04]}  Kd7 {[%clk 0:00:41]} 41. h5 {[%clk 0:00:04]}  Kd6 {[%clk 0:00:42]} 42. hxg6 {[%clk 0:00:04]}  hxg6 {[%clk 0:00:43]} 43. Rh1 {[%clk 0:00:03]}  Bc7 {[%clk 0:00:40]} 44. Rb1 {[%clk 0:00:01]}  e5 {[%clk 0:00:39]} 45. fxe5+ {[%clk 0:00:02]}  fxe5 {[%clk 0:00:40]} 46. Rg1 {[%clk 0:00:01]}  Rxb5 {[%clk 0:00:38]} 47. Rxg6+ {[%clk 0:00:01]}  Kc5 {[%clk 0:00:39]} 48. Ne7 {[%clk 0:00:01]}  Rb3+ {[%clk 0:00:38]} 49. Kc2 {[%clk 0:00:01]}  Rb7 {[%clk 0:00:39]} 50. Rc6+ {[%clk 0:00:01]}  Kd4 {[%clk 0:00:40]} 51. Nf5+ {[%clk 0:00:01]}  Ke4 {[%clk 0:00:40]} 52. Ne7 {[%clk 0:00:01]}  Bd8 {[%clk 0:00:36]} 53. Nc8 {[%clk 0:00:02]}  Rc7 {[%clk 0:00:35]} 54. Nd6+ {[%clk 0:00:03]}  Kf4 {[%clk 0:00:33]} 55. Rxc7 {[%clk 0:00:03]}  Bxc7 {[%clk 0:00:34]} 56. Nb5 {[%clk 0:00:04]}  Bb6 {[%clk 0:00:34]} 57. Nc3 {[%clk 0:00:04]}  d4 {[%clk 0:00:21]} 58. Nd5+ {[%clk 0:00:04]}  Kf3 {[%clk 0:00:20]} 59. Nxb6 {[%clk 0:00:04]}  Ke2 {[%clk 0:00:21]} 60. Nc4 {[%clk 0:00:04]}  e4 {[%clk 0:00:19]} 61. Nd2 {[%clk 0:00:04]}  e3 {[%clk 0:00:18]} 62. Ne4 {[%clk 0:00:00]}  d3+ {[%clk 0:00:19]} 0-1


[Site "https://www.chess.com"]

[Event "Titled Tuesday Blitz July 11 Late 2023"]
[White "Svane, Frederik"]
[Black "feuervogel1000000"]
[WhiteFideId "12923044"]
[WhiteElo "2793"]
[BlackElo "2522"]
[Result "1-0"]
[Round "2"]
[TimeControl "180+2"]
[Date "2023.07.11"]
[WhiteClock "0:00:04"]
[BlackClock "0:01:03"]
[Board "46"]

1. c4 {[%clk 0:03:00]}  e6 {[%clk 0:02:57]} 2. Nc3 {[%clk 0:03:00]}  d5 {[%clk 0:02:57]} 3. d4 {[%clk 0:03:01]}  Nf6 {[%clk 0:02:57]} 4. cxd5 {[%clk 0:03:00]}  exd5 {[%clk 0:02:58]} 5. Bf4 {[%clk 0:02:49]}  c6 {[%clk 0:02:56]} 6. e3 {[%clk 0:02:48]}  Be7 {[%clk 0:02:55]} 7. Bd3 {[%clk 0:02:47]}  O-O {[%clk 0:02:55]} 8. Nf3 {[%clk 0:02:47]}  Re8 {[%clk 0:02:55]} 9. O-O {[%clk 0:02:48]}  Nbd7 {[%clk 0:02:54]} 10. h3 {[%clk 0:02:48]}  Nf8 {[%clk 0:02:53]} 11. Rb1 {[%clk 0:02:48]}  Ne6 {[%clk 0:02:52]} 12. Be5 {[%clk 0:02:49]}  a5 {[%clk 0:02:52]} 13. a3 {[%clk 0:02:49]}  b5 {[%clk 0:02:48]} 14. Qc2 {[%clk 0:02:41]}  g6 {[%clk 0:02:45]} 15. Ne2 {[%clk 0:01:52]}  Bb7 {[%clk 0:02:44]} 16. Rbc1 {[%clk 0:01:53]}  Nd7 {[%clk 0:02:36]} 17. Bh2 {[%clk 0:01:49]}  Bf6 {[%clk 0:02:36]} 18. e4 {[%clk 0:01:42]}  dxe4 {[%clk 0:02:32]} 19. Bxe4 {[%clk 0:01:43]}  Rc8 {[%clk 0:02:31]} 20. Rfd1 {[%clk 0:01:38]}  Nb6 {[%clk 0:02:30]} 21. Ne5 {[%clk 0:01:36]}  Nd5 {[%clk 0:02:25]} 22. Qd2 {[%clk 0:01:35]}  Bg5 {[%clk 0:02:23]} 23. f4 {[%clk 0:01:34]}  Bh6 {[%clk 0:02:22]} 24. Kh1 {[%clk 0:00:53]}  Qf6 {[%clk 0:02:15]} 25. Ng4 {[%clk 0:00:51]}  Qg7 {[%clk 0:02:14]} 26. Nxh6+ {[%clk 0:00:51]}  Qxh6 {[%clk 0:02:15]} 27. Bf3 {[%clk 0:00:39]}  a4 {[%clk 0:02:12]} 28. Re1 {[%clk 0:00:28]}  Qg7 {[%clk 0:02:08]} 29. Rcd1 {[%clk 0:00:21]}  Red8 {[%clk 0:02:05]} 30. f5 {[%clk 0:00:17]}  gxf5 {[%clk 0:02:04]} 31. Ng3 {[%clk 0:00:18]}  Ne7 {[%clk 0:02:02]} 32. Nh5 {[%clk 0:00:15]}  Qg6 {[%clk 0:02:02]} 33. Be5 {[%clk 0:00:15]}  Kf8 {[%clk 0:01:56]} 34. Nf6 {[%clk 0:00:13]}  Ng8 {[%clk 0:01:55]} 35. Bh5 {[%clk 0:00:12]}  Qh6 {[%clk 0:01:53]} 36. Qxh6+ {[%clk 0:00:08]}  Nxh6 {[%clk 0:01:54]} 37. Nxh7+ {[%clk 0:00:09]}  Kg8 {[%clk 0:01:52]} 38. Nf6+ {[%clk 0:00:09]}  Kf8 {[%clk 0:01:53]} 39. Bf3 {[%clk 0:00:08]}  f4 {[%clk 0:01:51]} 40. Be4 {[%clk 0:00:03]}  Ke7 {[%clk 0:01:47]} 41. Nh5 {[%clk 0:00:04]}  Kd7 {[%clk 0:01:43]} 42. Nxf4 {[%clk 0:00:04]}  Rg8 {[%clk 0:01:42]} 43. Nxe6 {[%clk 0:00:04]}  fxe6 {[%clk 0:01:43]} 44. Rf1 {[%clk 0:00:04]}  Rce8 {[%clk 0:01:38]} 45. Kg1 {[%clk 0:00:02]}  Re7 {[%clk 0:01:37]} 46. Rf6 {[%clk 0:00:02]}  Nf7 {[%clk 0:01:36]} 47. Rdf1 {[%clk 0:00:02]}  Nxe5 {[%clk 0:01:35]} 48. dxe5 {[%clk 0:00:03]}  Reg7 {[%clk 0:01:36]} 49. g4 {[%clk 0:00:03]}  Ke7 {[%clk 0:01:35]} 50. Kg2 {[%clk 0:00:03]}  Rd8 {[%clk 0:01:33]} 51. Kg3 {[%clk 0:00:04]}  Rd4 {[%clk 0:01:33]} 52. Bg2 {[%clk 0:00:04]}  Rd3+ {[%clk 0:01:33]} 53. R6f3 {[%clk 0:00:03]}  Rd2 {[%clk 0:01:33]} 54. R1f2 {[%clk 0:00:04]}  Rd5 {[%clk 0:01:33]} 55. Re3 {[%clk 0:00:04]}  Rd4 {[%clk 0:01:33]} 56. Rf4 {[%clk 0:00:02]}  Rd2 {[%clk 0:01:33]} 57. Rf2 {[%clk 0:00:03]}  Rd4 {[%clk 0:01:33]} 58. Bf3 {[%clk 0:00:03]}  Kd7 {[%clk 0:01:21]} 59. Be4 {[%clk 0:00:02]}  Kc7 {[%clk 0:01:19]} 60. Rf6 {[%clk 0:00:02]}  Re7 {[%clk 0:01:20]} 61. g5 {[%clk 0:00:02]}  c5 {[%clk 0:01:18]} 62. Bxb7 {[%clk 0:00:01]}  Kxb7 {[%clk 0:01:19]} 63. h4 {[%clk 0:00:02]}  b4 {[%clk 0:01:18]} 64. Rf4 {[%clk 0:00:01]}  Red7 {[%clk 0:01:16]} 65. Kg4 {[%clk 0:00:01]}  Rd2 {[%clk 0:01:15]} 66. g6 {[%clk 0:00:01]}  Rg2+ {[%clk 0:01:15]} 67. Rg3 {[%clk 0:00:02]}  Rxb2 {[%clk 0:01:15]} 68. Rf7 {[%clk 0:00:02]}  Rxf7 {[%clk 0:01:08]} 69. gxf7 {[%clk 0:00:03]}  Rf2 {[%clk 0:01:08]} 70. Rf3 {[%clk 0:00:03]}  Rg2+ {[%clk 0:01:03]} 71. Kh3 {[%clk 0:00:04]} 1-0


[Site "https://www.chess.com"]

[Event "Titled Tuesday Blitz July 11 Late 2023"]
[White "Yeritsyan, Hayk"]
[Black "Licznerski, Lukasz"]
[WhiteFideId "13307320"]
[BlackFideId "1179250"]
[WhiteElo "2519"]
[BlackElo "2789"]
[Result "0-1"]
[Round "2"]
[TimeControl "180+2"]
[Date "2023.07.11"]
[WhiteClock "0:00:07"]
[BlackClock "0:00:05"]
[Board "48"]

1. d4 {[%clk 0:02:59]}  Nf6 {[%clk 0:02:59]} 2. Nf3 {[%clk 0:02:54]}  e6 {[%clk 0:02:57]} 3. e3 {[%clk 0:02:55]}  c5 {[%clk 0:02:56]} 4. Bd3 {[%clk 0:02:55]}  cxd4 {[%clk 0:02:49]} 5. exd4 {[%clk 0:02:56]}  b6 {[%clk 0:02:49]} 6. c3 {[%clk 0:02:56]}  Bb7 {[%clk 0:02:49]} 7. Bf4 {[%clk 0:02:57]}  Be7 {[%clk 0:02:46]} 8. Nbd2 {[%clk 0:02:57]}  O-O {[%clk 0:02:46]} 9. Qe2 {[%clk 0:02:57]}  a6 {[%clk 0:02:45]} 10. O-O {[%clk 0:02:57]}  d6 {[%clk 0:02:45]} 11. Rfe1 {[%clk 0:02:57]}  Nbd7 {[%clk 0:02:45]} 12. Ng5 {[%clk 0:02:57]}  e5 {[%clk 0:02:12]} 13. dxe5 {[%clk 0:02:48]}  dxe5 {[%clk 0:02:11]} 14. Bg3 {[%clk 0:02:35]}  h6 {[%clk 0:02:08]} 15. Nge4 {[%clk 0:02:32]}  Re8 {[%clk 0:01:37]} 16. Nxf6+ {[%clk 0:02:28]}  Nxf6 {[%clk 0:01:36]} 17. Ne4 {[%clk 0:02:28]}  Qc7 {[%clk 0:01:10]} 18. Nxf6+ {[%clk 0:02:25]}  Bxf6 {[%clk 0:01:11]} 19. Be4 {[%clk 0:02:26]}  Rad8 {[%clk 0:01:03]} 20. Rad1 {[%clk 0:02:23]}  Bxe4 {[%clk 0:00:54]} 21. Qxe4 {[%clk 0:02:22]}  Rxd1 {[%clk 0:00:51]} 22. Rxd1 {[%clk 0:02:22]}  Rd8 {[%clk 0:00:52]} 23. Rd5 {[%clk 0:02:13]}  g6 {[%clk 0:00:42]} 24. h3 {[%clk 0:02:08]}  Rxd5 {[%clk 0:00:41]} 25. Qxd5 {[%clk 0:02:07]}  Kg7 {[%clk 0:00:42]} 26. c4 {[%clk 0:02:02]}  h5 {[%clk 0:00:37]} 27. h4 {[%clk 0:01:55]}  Qe7 {[%clk 0:00:37]} 28. f3 {[%clk 0:01:43]}  Bxh4 {[%clk 0:00:26]} 29. Qxe5+ {[%clk 0:01:35]}  Qxe5 {[%clk 0:00:23]} 30. Bxe5+ {[%clk 0:01:36]}  Bf6 {[%clk 0:00:23]} 31. Bf4 {[%clk 0:01:14]}  Bxb2 {[%clk 0:00:22]} 32. Be3 {[%clk 0:01:14]}  b5 {[%clk 0:00:20]} 33. cxb5 {[%clk 0:01:15]}  axb5 {[%clk 0:00:20]} 34. Kf2 {[%clk 0:01:06]}  Kf6 {[%clk 0:00:20]} 35. g4 {[%clk 0:01:05]}  h4 {[%clk 0:00:05]} 36. f4 {[%clk 0:00:59]}  Ke6 {[%clk 0:00:04]} 37. Kf3 {[%clk 0:00:55]}  Kd5 {[%clk 0:00:04]} 38. Bf2 {[%clk 0:00:53]}  h3 {[%clk 0:00:04]} 39. Kg3 {[%clk 0:00:54]}  Ke4 {[%clk 0:00:04]} 40. f5 {[%clk 0:00:50]}  gxf5 {[%clk 0:00:02]} 41. gxf5 {[%clk 0:00:51]}  Kxf5 {[%clk 0:00:03]} 42. Kxh3 {[%clk 0:00:51]}  Ke4 {[%clk 0:00:04]} 43. Kg4 {[%clk 0:00:49]}  f5+ {[%clk 0:00:05]} 44. Kg3 {[%clk 0:00:48]}  Be5+ {[%clk 0:00:04]} 45. Kg2 {[%clk 0:00:49]}  f4 {[%clk 0:00:05]} 46. Kf1 {[%clk 0:00:48]}  f3 {[%clk 0:00:05]} 47. Bc5 {[%clk 0:00:47]}  Bd4 {[%clk 0:00:04]} 48. Bb4 {[%clk 0:00:33]}  Kd3 {[%clk 0:00:05]} 49. Be7 {[%clk 0:00:29]}  Kc2 {[%clk 0:00:05]} 50. a3 {[%clk 0:00:24]}  Kb3 {[%clk 0:00:05]} 51. Bd6 {[%clk 0:00:21]}  Ka2 {[%clk 0:00:05]} 52. Be7 {[%clk 0:00:20]}  Ba7 {[%clk 0:00:05]} 53. Bd6 {[%clk 0:00:20]}  Be3 {[%clk 0:00:06]} 54. Be7 {[%clk 0:00:20]}  Bc1 {[%clk 0:00:06]} 55. Kf2 {[%clk 0:00:18]}  Bxa3 {[%clk 0:00:07]} 56. Bf6 {[%clk 0:00:18]}  b4 {[%clk 0:00:07]} 57. Kxf3 {[%clk 0:00:19]}  b3 {[%clk 0:00:07]} 58. Ke2 {[%clk 0:00:18]}  Bb2 {[%clk 0:00:05]} 59. Bg5 {[%clk 0:00:17]}  Bg7 {[%clk 0:00:05]} 60. Bc1 {[%clk 0:00:17]}  Bh6 {[%clk 0:00:05]} 61. Ba3 {[%clk 0:00:07]}  Kxa3 {[%clk 0:00:05]} 0-1


[Site "https://www.chess.com"]

[Event "Titled Tuesday Blitz July 11 Late 2023"]
[White "Schmakel, Sam"]
[Black "Zhang, Derek"]
[WhiteFideId "2039311"]
[BlackFideId "2087871"]
[WhiteElo "2786"]
[BlackElo "2516"]
[Result "1-0"]
[Round "2"]
[TimeControl "180+2"]
[Date "2023.07.11"]
[WhiteClock "0:00:17"]
[BlackClock "0:00:10"]
[Board "50"]

1. d4 {[%clk 0:03:00]}  d6 {[%clk 0:02:59]} 2. e4 {[%clk 0:02:54]}  e5 {[%clk 0:02:59]} 3. Nf3 {[%clk 0:02:54]}  exd4 {[%clk 0:03:00]} 4. Nxd4 {[%clk 0:02:54]}  Nf6 {[%clk 0:03:00]} 5. Nc3 {[%clk 0:02:55]}  Be7 {[%clk 0:03:01]} 6. Bf4 {[%clk 0:02:55]}  O-O {[%clk 0:03:01]} 7. Qd2 {[%clk 0:02:56]}  c6 {[%clk 0:03:02]} 8. O-O-O {[%clk 0:02:55]}  b5 {[%clk 0:03:02]} 9. f3 {[%clk 0:02:53]}  Qb6 {[%clk 0:02:42]} 10. g4 {[%clk 0:02:49]}  b4 {[%clk 0:02:34]} 11. Nce2 {[%clk 0:02:49]}  c5 {[%clk 0:02:18]} 12. Nf5 {[%clk 0:02:48]}  Bxf5 {[%clk 0:02:18]} 13. gxf5 {[%clk 0:02:47]}  Nc6 {[%clk 0:02:13]} 14. Rg1 {[%clk 0:02:46]}  Ne5 {[%clk 0:02:06]} 15. Bxe5 {[%clk 0:02:22]}  dxe5 {[%clk 0:02:06]} 16. Qh6 {[%clk 0:02:22]}  Ne8 {[%clk 0:02:01]} 17. Qxb6 {[%clk 0:02:04]}  axb6 {[%clk 0:02:01]} 18. Kb1 {[%clk 0:02:04]}  Nf6 {[%clk 0:01:26]} 19. Ng3 {[%clk 0:02:01]}  Rfd8 {[%clk 0:01:20]} 20. Bb5 {[%clk 0:01:58]}  Rd4 {[%clk 0:01:09]} 21. c3 {[%clk 0:01:47]}  bxc3 {[%clk 0:01:04]} 22. bxc3 {[%clk 0:01:48]}  Rdd8 {[%clk 0:01:00]} 23. a4 {[%clk 0:01:44]}  Kf8 {[%clk 0:01:00]} 24. Kc2 {[%clk 0:01:43]}  Ne8 {[%clk 0:00:42]} 25. Kb3 {[%clk 0:01:34]}  Bh4 {[%clk 0:00:39]} 26. Ne2 {[%clk 0:01:13]}  Nd6 {[%clk 0:00:32]} 27. Rgf1 {[%clk 0:00:51]}  Bg5 {[%clk 0:00:29]} 28. Rd5 {[%clk 0:00:28]}  Nxb5 {[%clk 0:00:20]} 29. axb5 {[%clk 0:00:28]}  Ra5 {[%clk 0:00:20]} 30. Rxd8+ {[%clk 0:00:25]}  Bxd8 {[%clk 0:00:20]} 31. Rd1 {[%clk 0:00:25]}  Ke7 {[%clk 0:00:17]} 32. c4 {[%clk 0:00:24]}  Ra7 {[%clk 0:00:13]} 33. Nc3 {[%clk 0:00:24]}  Rd7 {[%clk 0:00:14]} 34. Nd5+ {[%clk 0:00:24]}  Kf8 {[%clk 0:00:14]} 35. Ra1 {[%clk 0:00:23]}  Rb7 {[%clk 0:00:13]} 36. Ra8 {[%clk 0:00:23]}  Ke8 {[%clk 0:00:13]} 37. Rc8 {[%clk 0:00:22]}  Kd7 {[%clk 0:00:13]} 38. Rc6 {[%clk 0:00:23]}  f6 {[%clk 0:00:13]} 39. h4 {[%clk 0:00:21]}  Bc7 {[%clk 0:00:13]} 40. Nxc7 {[%clk 0:00:18]}  Rxc7 {[%clk 0:00:13]} 41. Rxb6 {[%clk 0:00:19]}  Ra7 {[%clk 0:00:14]} 42. Ra6 {[%clk 0:00:14]}  Rxa6 {[%clk 0:00:11]} 43. bxa6 {[%clk 0:00:15]}  Kc6 {[%clk 0:00:11]} 44. Ka4 {[%clk 0:00:16]}  Kb6 {[%clk 0:00:12]} 45. a7 {[%clk 0:00:16]}  Kxa7 {[%clk 0:00:10]} 46. Kb5 {[%clk 0:00:17]} 1-0


[Site "https://www.chess.com"]

[Event "Titled Tuesday Blitz July 11 Late 2023"]
[White "Deng, Henry"]
[Black "Tristan, Leonardo"]
[WhiteFideId "30965454"]
[BlackFideId "113816"]
[WhiteElo "2500"]
[BlackElo "2778"]
[Result "0-1"]
[Round "2"]
[TimeControl "180+2"]
[Date "2023.07.11"]
[WhiteClock "0:00:13"]
[BlackClock "0:00:10"]
[Board "51"]

1. e4 {[%clk 0:03:00]}  d5 {[%clk 0:02:59]} 2. exd5 {[%clk 0:03:00]}  Qxd5 {[%clk 0:03:00]} 3. Nc3 {[%clk 0:02:59]}  Qa5 {[%clk 0:03:00]} 4. d4 {[%clk 0:02:58]}  Nf6 {[%clk 0:03:01]} 5. Nf3 {[%clk 0:02:55]}  Bf5 {[%clk 0:03:01]} 6. Bc4 {[%clk 0:02:55]}  e6 {[%clk 0:03:01]} 7. Bd2 {[%clk 0:02:56]}  Bb4 {[%clk 0:03:01]} 8. O-O {[%clk 0:02:51]}  Nc6 {[%clk 0:03:00]} 9. a3 {[%clk 0:02:49]}  Bxc3 {[%clk 0:03:01]} 10. Bxc3 {[%clk 0:02:50]}  Qb6 {[%clk 0:03:01]} 11. d5 {[%clk 0:02:47]}  O-O-O {[%clk 0:03:01]} 12. Qe2 {[%clk 0:02:22]}  exd5 {[%clk 0:02:31]} 13. Bxf6 {[%clk 0:02:20]}  gxf6 {[%clk 0:02:30]} 14. Bd3 {[%clk 0:02:19]}  Bg4 {[%clk 0:02:10]} 15. h3 {[%clk 0:02:09]}  Nd4 {[%clk 0:02:04]} 16. Qe3 {[%clk 0:01:41]}  Nxf3+ {[%clk 0:02:00]} 17. gxf3 {[%clk 0:01:41]}  Bxh3 {[%clk 0:01:59]} 18. Qxb6 {[%clk 0:01:41]}  axb6 {[%clk 0:01:59]} 19. Rfe1 {[%clk 0:01:41]}  Rhg8+ {[%clk 0:01:53]} 20. Kh2 {[%clk 0:01:41]}  Be6 {[%clk 0:01:54]} 21. f4 {[%clk 0:01:39]}  Rg4 {[%clk 0:01:45]} 22. Re3 {[%clk 0:01:34]}  Rxf4 {[%clk 0:01:26]} 23. Kg2 {[%clk 0:01:29]}  d4 {[%clk 0:01:23]} 24. Rg3 {[%clk 0:01:28]}  h5 {[%clk 0:01:19]} 25. Re1 {[%clk 0:01:11]}  h4 {[%clk 0:01:19]} 26. Rg7 {[%clk 0:01:11]}  h3+ {[%clk 0:01:19]} 27. Kg3 {[%clk 0:01:10]}  Rf5 {[%clk 0:00:55]} 28. Bxf5 {[%clk 0:01:00]}  Bxf5 {[%clk 0:00:56]} 29. Re2 {[%clk 0:00:56]}  Rh8 {[%clk 0:00:49]} 30. Kh2 {[%clk 0:00:53]}  Bg6 {[%clk 0:00:49]} 31. f4 {[%clk 0:00:49]}  f5 {[%clk 0:00:49]} 32. Rd2 {[%clk 0:00:38]}  c5 {[%clk 0:00:37]} 33. c3 {[%clk 0:00:34]}  Kd7 {[%clk 0:00:25]} 34. cxd4 {[%clk 0:00:34]}  Ke6 {[%clk 0:00:26]} 35. dxc5 {[%clk 0:00:20]}  bxc5 {[%clk 0:00:26]} 36. Rc2 {[%clk 0:00:16]}  Kf6 {[%clk 0:00:15]} 37. Rxg6+ {[%clk 0:00:15]}  fxg6 {[%clk 0:00:15]} 38. Rxc5 {[%clk 0:00:16]}  Rh4 {[%clk 0:00:15]} 39. Rb5 {[%clk 0:00:15]}  Rxf4 {[%clk 0:00:10]} 40. Kxh3 {[%clk 0:00:15]}  g5 {[%clk 0:00:06]} 41. Rxb7 {[%clk 0:00:15]}  g4+ {[%clk 0:00:07]} 42. Kg2 {[%clk 0:00:15]}  Rd4 {[%clk 0:00:06]} 43. Rb3 {[%clk 0:00:12]}  Kg5 {[%clk 0:00:05]} 44. Kg1 {[%clk 0:00:09]}  f4 {[%clk 0:00:04]} 45. Rb8 {[%clk 0:00:06]}  g3 {[%clk 0:00:03]} 46. b4 {[%clk 0:00:06]}  f3 {[%clk 0:00:03]} 47. Rg8+ {[%clk 0:00:03]}  Kf4 {[%clk 0:00:03]} 48. Rf8+ {[%clk 0:00:04]}  Ke3 {[%clk 0:00:03]} 49. Re8+ {[%clk 0:00:05]}  Re4 {[%clk 0:00:04]} 50. Rxe4+ {[%clk 0:00:04]}  Kxe4 {[%clk 0:00:04]} 51. b5 {[%clk 0:00:05]}  Ke3 {[%clk 0:00:05]} 52. b6 {[%clk 0:00:05]}  Ke2 {[%clk 0:00:06]} 53. b7 {[%clk 0:00:05]}  f2+ {[%clk 0:00:06]} 54. Kg2 {[%clk 0:00:06]}  f1=Q+ {[%clk 0:00:07]} 55. Kxg3 {[%clk 0:00:07]}  Qf3+ {[%clk 0:00:07]} 56. Kh4 {[%clk 0:00:06]}  Qxb7 {[%clk 0:00:08]} 57. Kg5 {[%clk 0:00:07]}  Qa6 {[%clk 0:00:08]} 58. a4 {[%clk 0:00:08]}  Qxa4 {[%clk 0:00:08]} 59. Kf6 {[%clk 0:00:08]}  Qe4 {[%clk 0:00:06]} 60. Kg7 {[%clk 0:00:09]}  Qf5 {[%clk 0:00:07]} 61. Kg8 {[%clk 0:00:09]}  Qf6 {[%clk 0:00:07]} 62. Kh7 {[%clk 0:00:09]}  Qg5 {[%clk 0:00:08]} 63. Kh8 {[%clk 0:00:09]}  Ke3 {[%clk 0:00:08]} 64. Kh7 {[%clk 0:00:10]}  Ke4 {[%clk 0:00:09]} 65. Kh8 {[%clk 0:00:11]}  Ke5 {[%clk 0:00:09]} 66. Kh7 {[%clk 0:00:12]}  Kf6 {[%clk 0:00:10]} 67. Kh8 {[%clk 0:00:13]}  Qg7# {[%clk 0:00:10]} 0-1


[Site "https://www.chess.com"]

[Event "Titled Tuesday Blitz July 11 Late 2023"]
[White "Vakhlamov, Igor L."]
[Black "Martinez Reyes, Pedro Ramon"]
[WhiteFideId "24126748"]
[BlackFideId "3901807"]
[WhiteElo "2776"]
[BlackElo "2500"]
[Result "1/2-1/2"]
[Round "2"]
[TimeControl "180+2"]
[Date "2023.07.11"]
[WhiteClock "0:00:01"]
[BlackClock "0:00:10"]
[Board "52"]

1. e4 {[%clk 0:02:58]}  e6 {[%clk 0:03:00]} 2. d4 {[%clk 0:02:58]}  d5 {[%clk 0:03:00]} 3. Nc3 {[%clk 0:02:58]}  Nf6 {[%clk 0:02:59]} 4. Bd3 {[%clk 0:02:59]}  a6 {[%clk 0:02:53]} 5. Nf3 {[%clk 0:02:53]}  Be7 {[%clk 0:02:52]} 6. O-O {[%clk 0:02:51]}  Nc6 {[%clk 0:02:50]} 7. e5 {[%clk 0:02:49]}  Nd7 {[%clk 0:02:50]} 8. a3 {[%clk 0:02:49]}  Nb6 {[%clk 0:02:45]} 9. Ne2 {[%clk 0:02:48]}  Bd7 {[%clk 0:02:44]} 10. b3 {[%clk 0:02:41]}  Na7 {[%clk 0:02:42]} 11. a4 {[%clk 0:02:41]}  c5 {[%clk 0:02:39]} 12. Nf4 {[%clk 0:02:40]}  g6 {[%clk 0:02:33]} 13. a5 {[%clk 0:02:36]}  Nbc8 {[%clk 0:02:30]} 14. Re1 {[%clk 0:02:35]}  cxd4 {[%clk 0:02:25]} 15. Nxd4 {[%clk 0:02:36]}  Nc6 {[%clk 0:02:25]} 16. Nxc6 {[%clk 0:02:21]}  Bxc6 {[%clk 0:02:25]} 17. Bb2 {[%clk 0:02:17]}  Bb4 {[%clk 0:02:24]} 18. Ba3 {[%clk 0:02:07]}  Qxa5 {[%clk 0:02:21]} 19. Bxb4 {[%clk 0:02:03]}  Qxb4 {[%clk 0:02:22]} 20. Qf3 {[%clk 0:02:04]}  Ne7 {[%clk 0:02:15]} 21. Qg3 {[%clk 0:01:59]}  h6 {[%clk 0:02:07]} 22. h4 {[%clk 0:01:57]}  O-O-O {[%clk 0:02:01]} 23. Ne2 {[%clk 0:01:46]}  Kb8 {[%clk 0:01:49]} 24. c3 {[%clk 0:01:45]}  Qb6 {[%clk 0:01:39]} 25. Nd4 {[%clk 0:01:41]}  Rhg8 {[%clk 0:01:22]} 26. Qe3 {[%clk 0:01:40]}  g5 {[%clk 0:01:19]} 27. h5 {[%clk 0:01:40]}  Bd7 {[%clk 0:01:08]} 28. b4 {[%clk 0:01:38]}  Rc8 {[%clk 0:00:55]} 29. Ra3 {[%clk 0:01:37]}  Nc6 {[%clk 0:00:51]} 30. b5 {[%clk 0:01:01]}  Nxd4 {[%clk 0:00:46]} 31. bxa6 {[%clk 0:01:01]}  Qc5 {[%clk 0:00:32]} 32. Rb1 {[%clk 0:00:49]}  Ne2+ {[%clk 0:00:26]} 33. Bxe2 {[%clk 0:00:41]}  Qxe3 {[%clk 0:00:11]} 34. Rxb7+ {[%clk 0:00:41]}  Ka8 {[%clk 0:00:11]} 35. fxe3 {[%clk 0:00:42]}  Rgd8 {[%clk 0:00:11]} 36. Rab3 {[%clk 0:00:26]}  Rb8 {[%clk 0:00:11]} 37. c4 {[%clk 0:00:18]}  Bc6 {[%clk 0:00:11]} 38. Rxb8+ {[%clk 0:00:11]}  Rxb8 {[%clk 0:00:12]} 39. Rxb8+ {[%clk 0:00:11]}  Kxb8 {[%clk 0:00:13]} 40. Kf2 {[%clk 0:00:09]}  Ka7 {[%clk 0:00:13]} 41. c5 {[%clk 0:00:08]}  Bd7 {[%clk 0:00:10]} 42. Ke1 {[%clk 0:00:08]}  Bc8 {[%clk 0:00:11]} 43. Bb5 {[%clk 0:00:08]}  Bxa6 {[%clk 0:00:10]} 44. Be8 {[%clk 0:00:09]}  Bc8 {[%clk 0:00:10]} 45. Bxf7 {[%clk 0:00:09]}  Kb7 {[%clk 0:00:11]} 46. Be8 {[%clk 0:00:09]}  Kc7 {[%clk 0:00:11]} 47. Kd2 {[%clk 0:00:09]}  Kd8 {[%clk 0:00:12]} 48. Ba4 {[%clk 0:00:08]}  Kc7 {[%clk 0:00:12]} 49. Bb5 {[%clk 0:00:09]}  Bd7 {[%clk 0:00:12]} 50. Bxd7 {[%clk 0:00:08]}  Kxd7 {[%clk 0:00:13]} 51. Kc3 {[%clk 0:00:09]}  Kc7 {[%clk 0:00:13]} 52. Kb3 {[%clk 0:00:08]}  g4 {[%clk 0:00:13]} 53. g3 {[%clk 0:00:07]}  Kb7 {[%clk 0:00:14]} 54. Ka4 {[%clk 0:00:08]}  Ka6 {[%clk 0:00:10]} 55. Kb4 {[%clk 0:00:08]}  Ka7 {[%clk 0:00:09]} 56. Ka5 {[%clk 0:00:08]}  Kb7 {[%clk 0:00:09]} 57. Kb5 {[%clk 0:00:08]}  Kc7 {[%clk 0:00:10]} 58. c6 {[%clk 0:00:07]}  Kc8 {[%clk 0:00:10]} 59. Kb6 {[%clk 0:00:04]}  Kb8 {[%clk 0:00:11]} 60. Kb5 {[%clk 0:00:02]}  Kc8 {[%clk 0:00:10]} 61. Kb4 {[%clk 0:00:02]}  Kb8 {[%clk 0:00:09]} 62. Kc5 {[%clk 0:00:01]}  Kc7 {[%clk 0:00:10]} 63. Kb5 {[%clk 0:00:01]}  Kc8 {[%clk 0:00:10]} 1/2-1/2


[Site "https://www.chess.com"]